Workbook

Sheet HC Payroll Calculator
B2: Healthcare Payroll Contribution Calculator
B3: Enter Annual Salary: | C3: 30000 | J3: =TODAY() -> 2024-10-07
B5: 2025 | C5: FACULTY/STAFF | G5: TECH SERVICE
C6: Lion Advantage HSA Lion Advantage Flex | E6: Lion Traditional | G6: Lion Advantage | I6: Lion Traditional
B7: Rates | C7: % | D7: Annual$ | E7: % | F7: Annual$ | G7: % | H7: Annual$ | I7: % | J7: Annual$
B8: E (Individual) | C8: 0.0091 | D8: =+$F$38*$C8 -> 273 | E8: 0.0174 | F8: =+$F$38*$E8 -> 522 | G8: 0.021 | H8: =+$F$38*$G8 -> 630 | I8: 0.0351 | J8: =+$F$38*$I8 -> 1053
B9: S (Two Person) | C9: 0.0219 | D9: =+$F$38*$C9 -> 657 | E9: 0.0426 | F9: =+$F$38*$E9 -> 1278 | G9: 0.042 | H9: =+$F$38*$G9 -> 1260 | I9: 0.0702 | J9: =+$F$38*$I9 -> 2106
B10: C (Parent Child) | C10: 0.0203 | D10: =+$F$38*$C10 -> 609 | E10: 0.0395 | F10: =+$F$38*$E10 -> 1185 | G10: 0.0389 | H10: =+$F$38*$G10 -> 1167 | I10: 0.0649 | J10: =+$F$38*$I10 -> 1947
B11: D (Family) | C11: 0.0279 | D11: =+$F$38*$C11 -> 837 | E11: 0.0542 | F11: =+$F$38*$E11 -> 1626 | G11: 0.0525 | H11: =+$F$38*$G11 -> 1575 | I11: 0.0878 | J11: =+$F$38*$I11 -> 2634
B13: Per Pay Deduction | C13: Monthly | D13: Biweekly | E13: Monthly | F13: Biweekly | G13: Monthly | H13: Biweekly | I13: Monthly | J13: Biweekly
B14: E (Individual) | C14: =+$D8/12 -> 22.75 | D14: =+$D8/26 -> 10.5 | E14: =+$F8/12 -> 43.5 | F14: =+$F8/26 -> 20.07692308 | G14: =+$H8/12 -> 52.5 | H14: =+$H8/26 -> 24.23076923 | I14: =+$J8/12 -> 87.75 | J14: =+$J8/26 -> 40.5
B15: S (Two Person) | C15: =+$D9/12 -> 54.75 | D15: =+$D9/26 -> 25.26923077 | E15: =+$F9/12 -> 106.5 | F15: =+$F9/26 -> 49.15384615 | G15: =+$H9/12 -> 105 | H15: =+$H9/26 -> 48.46153846 | I15: =+$J9/12 -> 175.5 | J15: =+$J9/26 -> 81
B16: C (Parent Child) | C16: =+$D10/12 -> 50.75 | D16: =+$D10/26 -> 23.42307692 | E16: =+$F10/12 -> 98.75 | F16: =+$F10/26 -> 45.57692308 | G16: =+$H10/12 -> 97.25 | H16: =+$H10/26 -> 44.88461538 | I16: =+$J10/12 -> 162.25 | J16: =+$J10/26 -> 74.88461538
B17: D (Family) | C17: =+$D11/12 -> 69.75 | D17: =+$D11/26 -> 32.19230769 | E17: =+$F11/12 -> 135.5 | F17: =+$F11/26 -> 62.53846154 | G17: =+$H11/12 -> 131.25 | H17: =+$H11/26 -> 60.57692308 | I17: =+$J11/12 -> 219.5 | J17: =+$J11/26 -> 101.3076923
B19: 2024 | C19: FACULTY/STAFF | G19: TECH SERVICE
C20: Lion Advantage | E20: Lion Traditional | G20: Lion Advantage | I20: Lion Traditional
B21: Rates | C21: % | D21: Annual$ | E21: % | F21: Annual$ | G21: % | H21: Annual$ | I21: % | J21: Annual$
B22: E (Individual) | C22: 0.008 | D22: =+$F$39*$C22 -> 240 | E22: 0.0154 | F22: =+$F$39*$E22 -> 462 | G22: 0.0145 | H22: =+$F$39*$G22 -> 435 | I22: 0.0297 | J22: =+$F$39*$I22 -> 891
B23: S (Two Person) | C23: 0.0193 | D23: =+$F$39*$C23 -> 579 | E23: 0.0376 | F23: =+$F$39*$E23 -> 1128 | G23: 0.0314 | H23: =+$F$39*$G23 -> 942 | I23: 0.064 | J23: =+$F$39*$I23 -> 1920
B24: C (Parent Child) | C24: 0.0179 | D24: =+$F$39*$C24 -> 537 | E24: 0.0349 | F24: =+$F$39*$E24 -> 1047 | G24: 0.0293 | H24: =+$F$39*$G24 -> 879 | I24: 0.0598 | J24: =+$F$39*$I24 -> 1794
B25: D (Family) | C25: 0.0246 | D25: =+$F$39*$C25 -> 738 | E25: 0.0479 | F25: =+$F$39*$E25 -> 1437 | G25: 0.0394 | H25: =+$F$39*$G25 -> 1182 | I25: 0.0803 | J25: =+$F$39*$I25 -> 2409
B27: Per Pay Deduction | C27: Monthly | D27: Biweekly | E27: Monthly | F27: Biweekly | G27: Monthly | H27: Biweekly | I27: Monthly | J27: Biweekly
B28: E (Individual) | C28: =+$D22/12 -> 20 | D28: =+$D22/26 -> 9.230769231 | E28: =+$F22/12 -> 38.5 | F28: =+$F22/26 -> 17.76923077 | G28: =+$H22/12 -> 36.25 | H28: =+$H22/26 -> 16.73076923 | I28: =+$J22/12 -> 74.25 | J28: =+$J22/26 -> 34.26923077
B29: S (Two Person) | C29: =+$D23/12 -> 48.25 | D29: =+$D23/26 -> 22.26923077 | E29: =+$F23/12 -> 94 | F29: =+$F23/26 -> 43.38461538 | G29: =+$H23/12 -> 78.5 | H29: =+$H23/26 -> 36.23076923 | I29: =+$J23/12 -> 160 | J29: =+$J23/26 -> 73.84615385
B30: C (Parent Child) | C30: =+$D24/12 -> 44.75 | D30: =+$D24/26 -> 20.65384615 | E30: =+$F24/12 -> 87.25 | F30: =+$F24/26 -> 40.26923077 | G30: =+$H24/12 -> 73.25 | H30: =+$H24/26 -> 33.80769231 | I30: =+$J24/12 -> 149.5 | J30: =+$J24/26 -> 69
B31: D (Family) | C31: =+$D25/12 -> 61.5 | D31: =+$D25/26 -> 28.38461538 | E31: =+$F25/12 -> 119.75 | F31: =+$F25/26 -> 55.26923077 | G31: =+$H25/12 -> 98.5 | H31: =+$H25/26 -> 45.46153846 | I31: =+$J25/12 -> 200.75 | J31: =+$J25/26 -> 92.65384615
B34: PLEASE NOTE: This calculator is intended to show an estimated pay period deduction for the different coverage types. The information contained in this calculator was taken from various sources. While every effort was taken to accurately report deductions for the benefits you selected, discrepancies or errors are possible. In the case of a discrepancy between this summary and the amounts deducted from your paycheck, the paycheck deductions for your contributions will prevail.
E38: 2024Premium Salary: | F38: =IF(C3<200000,+C3,200000) -> 30000
E39: 2025Premium Salary: | F39: =IF(C3<200000,+C3,200000) -> 30000
